[Event "4NCL 2021-22"]
[Site "England"]
[Date "2022.03.26"]
[Round "5.59"]
[White "Morrison, Graham"]
[Black "Modi, Shyam Jagdish"]
[Result "1/2-1/2"]
[ECO "E94"]
[WhiteElo "2258"]
[BlackElo "2128"]
[Annotator "ChessBase"]
[PlyCount "51"]
[EventDate "2021.11.27"]
[EventType "team-tourn"]
[EventCountry "ENG"]
[SourceTitle "playchess.com"]
[Source "ChessBase"]
[SourceQuality "1"]
[TimeControl "40/6000+30:3000+30"]

1. d4 {[%emt 0:00:05]} Nf6 {[%emt 0:00:13]} 2. c4 {[%emt 0:00:09]} g6 {[%emt 0:00:20]} 3. Nc3 {[%emt 0:00:08]} Bg7 {[%emt 0:00:20]} 4. e4 {[%emt 0:00:11]} d6 {[%emt 0:00:22]} 5. Nf3 {[%emt 0:00:11]} O-O {[%emt 0:00:38]} 6. Be2 {[%emt 0:00:10]} Nbd7 {[%emt 0:01:49]} 7. O-O {[%emt 0:00:20]} e5 {[%emt 0:00:52]} 8. Be3 {[%emt 0:00:21]} Re8 {[%emt 0:04:56]} 9. Qc2 {[%emt 0:02:55]} c6 {[%emt 0:22:12]} 10. d5 {[%emt 0:02:34]} Ng4 {[%emt 0:12:52]} 11. Bg5 {[%emt 0:00:20]} f6 {[%emt 0:10:34]} 12. Bh4 {[%emt 0:04:08]} Nh6 {[%emt 0:16:18]} 13. Rad1 {[%emt 0:05:05]} c5 {[%emt 0:00:55]} 14. Ne1 {[%emt 0:07:43]} Rf8 {[%emt 0:02:12]} 15. g4 {[%emt 0:06:32]} a6 {[%emt 0:03:18]} 16. Kh1 {[%emt 0:12:07]} Qe8 {[%emt 0:03:12]} 17. Rg1 {[%emt 0:05:41]} Kh8 {[%emt 0:02:39]} 18. Nd3 {[%emt 0:02:32]} Nb6 {[%emt 0:06:54]} 19. Qb3 {[%emt 0:02:46]} Nd7 {[%emt 0:02:56]} 20. a4 {[%emt 0:01:50]} Nf7 {[%emt 0:06:19]} 21. Rg2 {[%emt 0:05:17]} Qe7 {[%emt 0:03:02]} 22. Rdg1 {[%emt 0:00:28]} Bh6 {[%emt 0:00:51]} 23. Qc2 {[%emt 0:02:28]} Ng5 {[%emt 0:00:48]} 24. Rg3 {[%emt 0:06:22]} Nf7 {[%emt 0:00:47]} 25. R3g2 {[%emt 0:02:13]} Ng5 {[%emt 0:00:01]} 26. Rg3 {[%emt 0:01:20]} 1/2-1/2

[Event "4NCL 2021-22"]
[Site "England"]
[Date "2022.03.26"]
[Round "5.60"]
[White "Milson, Samuel A"]
[Black "Berry, Neil"]
[Result "1/2-1/2"]
[ECO "C56"]
[WhiteElo "2145"]
[BlackElo "2267"]
[Annotator "ChessBase"]
[PlyCount "65"]
[EventDate "2021.11.27"]
[EventType "team-tourn"]
[EventCountry "ENG"]
[SourceTitle "playchess.com"]
[Source "ChessBase"]
[SourceQuality "1"]
[TimeControl "40/6000+30:3000+30"]

1. e4 {[%emt 0:00:04]} e5 {[%emt 0:00:19]} 2. Nf3 {[%emt 0:00:13]} Nc6 {[%emt 0:00:19]} 3. Bc4 {[%emt 0:00:27]} Nf6 {[%emt 0:00:48]} 4. d4 {[%emt 0:00:26]} exd4 {[%emt 0:01:50]} 5. e5 {[%emt 0:00:30]} d5 {[%emt 0:02:27]} 6. Bb5 {[%emt 0:00:39]} Ne4 {[%emt 0:00:10]} 7. Nxd4 {[%emt 0:00:24]} Bc5 {[%emt 0:00:48]} 8. Be3 {[%emt 0:00:21]} O-O {[%emt 0:01:41]} 9. Nxc6 {[%emt 0:00:41]} bxc6 {[%emt 0:01:04]} 10. Bxc5 {[%emt 0:00:10]} Nxc5 {[%emt 0:00:07]} 11. Bxc6 {[%emt 0:00:30]} Rb8 {[%emt 0:02:10]} 12. Qxd5 {[%emt 0:01:34]} Qe7 {[%emt 0:03:15]} 13. O-O {[%emt 0:01:15]} Rxb2 {[%emt 0:02:16]} 14. Nc3 {[%emt 0:01:26]} Rxc2 {[%emt 0:05:17]} 15. Qd4 {[%emt 0:02:58]} Ne6 {[%emt 0:02:47]} 16. Qd3 {[%emt 0:01:00]} Rb2 {[%emt 0:00:27]} 17. Nd5 {[%emt 0:01:26]} Qc5 {[%emt 0:01:53]} 18. Rac1 {[%emt 0:01:22]} Qd4 {[%emt 0:03:07]} 19. Qf5 {[%emt 0:01:56]} Qh4 {[%emt 0:19:09]} 20. g3 {[%emt 0:16:15]} Nd4 {[%emt 0:29:32]} 21. Qd3 {[%emt 0:13:22]} Qg4 {[%emt 0:01:12]} 22. Ne7+ {[%emt 0:01:06]} Kh8 {[%emt 0:01:11]} 23. Rc4 {[%emt 0:04:17]} Ne2+ {[%emt 0:07:02]} 24. Kh1 {[%emt 0:01:30]} Ba6 {[%emt 0:03:15]} 25. Qxh7+ {[%emt 0:09:16]} Kxh7 {[%emt 0:00:06]} 26. Re4 {[%emt 0:00:07]} Qf4 27. Rxf4 {[%emt 0:00:31]} g6 {[%emt 0:00:46]} 28. Rg4 {[%emt 0:02:27]} Bc4 {[%emt 0:09:58]} 29. Re1 Bd3 {[%emt 0:00:00]} 30. Be4 {[%emt 0:07:41]} Bc4 {[%emt 0:02:20]} 31. Bf3 {[%emt 0:20:59]} Bd3 {[%emt 0:02:11]} 32. Be4 {[%emt 0:09:31]} Bc4 {[%emt 0:00:07]} 33. Bf3 {[%emt 0:01:09]} 1/2-1/2

[Event "4NCL 2021-22"]
[Site "England"]
[Date "2022.03.26"]
[Round "5.61"]
[White "Olson, Hamish"]
[Black "Lentzos, Ioanis"]
[Result "1/2-1/2"]
[ECO "D23"]
[WhiteElo "2296"]
[BlackElo "2104"]
[Annotator "ChessBase"]
[PlyCount "126"]
[EventDate "2021.11.27"]
[EventType "team-tourn"]
[EventCountry "ENG"]
[SourceTitle "playchess.com"]
[Source "ChessBase"]
[SourceQuality "1"]
[TimeControl "40/6000+30:3000+30"]

1. d4 {[%emt 0:00:16]} d5 {[%emt 0:00:05]} 2. Nf3 {[%emt 0:00:28]} Nf6 {[%emt 0:00:05]} 3. c4 {[%emt 0:01:00]} c6 {[%emt 0:00:09]} 4. Qb3 {[%emt 0:00:39]} dxc4 {[%emt 0:00:24]} 5. Qxc4 {[%emt 0:00:12]} Bf5 {[%emt 0:00:08]} 6. g3 {[%emt 0:00:23]} e6 {[%emt 0:00:22]} 7. Bg2 {[%emt 0:00:24]} Be7 {[%emt 0:00:49]} 8. O-O {[%emt 0:00:18]} O-O {[%emt 0:00:21]} 9. Qb3 {[%emt 0:00:32]} Qb6 {[%emt 0:00:58]} 10. Nbd2 {[%emt 0:01:32]} Rd8 {[%emt 0:08:44]} 11. Nc4 {[%emt 0:03:21]} Qa6 {[%emt 0:03:05]} 12. Bf4 {[%emt 0:05:03]} Be4 {[%emt 0:04:15]} 13. Rfd1 {[%emt 0:11:26]} c5 {[%emt 0:08:49]} 14. dxc5 {[%emt 0:08:05]} Nbd7 {[%emt 0:01:11]} 15. Bd6 {[%emt 0:11:52]} Nxc5 {[%emt 0:01:45]} 16. Bxc5 {[%emt 0:01:38]} Bxc5 {[%emt 0:00:08]} 17. a4 {[%emt 0:06:05]} b6 {[%emt 0:22:26]} 18. Nfe5 {[%emt 0:01:26]} Bxg2 {[%emt 0:01:10]} 19. Kxg2 {[%emt 0:00:08]} Qb7+ {[%emt 0:01:40]} 20. Qf3 {[%emt 0:02:14]} Qxf3+ {[%emt 0:07:35]} 21. Kxf3 {[%emt 0:00:31]} Nd5 {[%emt 0:01:10]} 22. Nd3 {[%emt 0:04:08]} Be7 {[%emt 0:11:39]} 23. Nce5 {[%emt 0:05:12]} Rdc8 {[%emt 0:21:04]} 24. e4 {[%emt 0:06:28]} Nb4 {[%emt 0:01:52]} 25. Nxb4 {[%emt 0:01:59]} Bxb4 {[%emt 0:00:04]} 26. Rac1 {[%emt 0:02:07]} f6 {[%emt 0:05:54]} 27. Nd3 {[%emt 0:05:35]} Bd6 {[%emt 0:00:30]} 28. b4 {[%emt 0:00:47]} Kf7 {[%emt 0:00:48]} 29. Ke3 {[%emt 0:01:24]} a5 {[%emt 0:01:01]} 30. Rxc8 {[%emt 0:05:14]} Rxc8 {[%emt 0:00:02]} 31. bxa5 {[%emt 0:00:13]} bxa5 {[%emt 0:00:04]} 32. Rc1 {[%emt 0:00:29]} Rxc1 {[%emt 0:02:27]} 33. Nxc1 {[%emt 0:00:07]} Bc5+ {[%emt 0:00:27]} 34. Ke2 {[%emt 0:02:08]} Ke7 {[%emt 0:00:10]} 35. Nd3 {[%emt 0:07:07]} Bd4 {[%emt 0:00:24]} 36. h4 {[%emt 0:04:34]} Kd6 {[%emt 0:00:21]} 37. h5 {[%emt 0:02:00]} f5 {[%emt 0:01:05]} 38. f3 {[%emt 0:02:04]} g6 {[%emt 0:02:03]} 39. hxg6 {[%emt 0:05:25]} hxg6 {[%emt 0:00:03]} 40. Kd2 {[%emt 0:00:44]} fxe4 {[%emt 0:02:23]} 41. fxe4 {[%emt 0:05:47]} Ke7 {[%emt 0:12:17]} 42. Ke2 {[%emt 0:02:07]} Kf6 {[%emt 0:05:48]} 43. Ne1 {[%emt 0:00:59]} Ke5 {[%emt 0:04:18]} 44. Kd3 {[%emt 0:00:37]} Bf2 {[%emt 0:00:34]} 45. Nf3+ {[%emt 0:00:16]} Kd6 {[%emt 0:00:25]} 46. g4 {[%emt 0:16:04]} Kc5 {[%emt 0:01:26]} 47. Ne5 {[%emt 0:03:11]} Kb4 {[%emt 0:05:24]} 48. Nxg6 {[%emt 0:00:21]} Kxa4 {[%emt 0:01:29]} 49. Kc4 {[%emt 0:00:51]} Ka3 {[%emt 0:00:38]} 50. Nf4 {[%emt 0:00:41]} a4 {[%emt 0:02:06]} 51. Kc3 {[%emt 0:04:28]} Be1+ {[%emt 0:06:42]} 52. Kc2 {[%emt 0:00:26]} Bg3 {[%emt 0:05:20]} 53. Nd3 {[%emt 0:01:41]} Bh4 {[%emt 0:00:19]} 54. Kc3 {[%emt 0:00:46]} Be7 {[%emt 0:02:04]} 55. Kc2 {[%emt 0:01:21]} Bf6 {[%emt 0:01:57]} 56. e5 {[%emt 0:04:25]} Bg5 {[%emt 0:00:08]} 57. Kc3 {[%emt 0:01:50]} Bh4 {[%emt 0:00:18]} 58. Kc2 {[%emt 0:05:43]} Bg5 {[%emt 0:00:23]} 59. Nc5 {[%emt 0:01:48]} Bf4 {[%emt 0:00:27]} 60. Nxe6 {[%emt 0:00:15]} Bxe5 {[%emt 0:00:07]} 61. Nc5 {[%emt 0:00:08]} Bf6 {[%emt 0:00:27]} 62. g5 {[%emt 0:00:31]} Bxg5 {[%emt 0:00:06]} 63. Nxa4 {[%emt 0:00:09]} Kxa4 {[%emt 0:00:03]} 1/2-1/2

[Event "4NCL 2021-22"]
[Site "England"]
[Date "2022.03.26"]
[Round "5.62"]
[White "McCarthy, Kevin C"]
[Black "Shafi, Declan"]
[Result "0-1"]
[ECO "D00"]
[WhiteElo "2012"]
[BlackElo "2188"]
[Annotator "ChessBase"]
[PlyCount "120"]
[EventDate "2021.11.27"]
[EventType "team-tourn"]
[EventCountry "ENG"]
[SourceTitle "playchess.com"]
[Source "ChessBase"]
[SourceQuality "1"]
[TimeControl "40/6000+30:3000+30"]

1. d4 {[%emt 0:00:21]} Nf6 {[%emt 0:00:12]} 2. Bf4 {[%emt 0:00:11]} g6 {[%emt 0:01:57]} 3. Nc3 {[%emt 0:00:46]} d5 {[%emt 0:00:08]} 4. e3 {[%emt 0:00:16]} Bg7 {[%emt 0:00:08]} 5. Nf3 {[%emt 0:00:20]} O-O {[%emt 0:00:18]} 6. h3 {[%emt 0:02:10]} c5 {[%emt 0:00:33]} 7. Nb5 {[%emt 0:07:02]} Na6 {[%emt 0:02:18]} 8. c3 {[%emt 0:05:20]} c4 {[%emt 0:11:00]} 9. Na3 {[%emt 0:19:02]} Ne4 {[%emt 0:05:07]} 10. Nd2 {[%emt 0:05:20]} f5 {[%emt 0:08:17]} 11. Nxe4 {[%emt 0:03:16]} fxe4 {[%emt 0:00:09]} 12. Be2 {[%emt 0:01:38]} e5 {[%emt 0:07:24]} 13. dxe5 {[%emt 0:04:09]} Nc5 {[%emt 0:02:15]} 14. O-O {[%emt 0:02:00]} Nd3 {[%emt 0:17:45]} 15. Bxd3 {[%emt 0:00:13]} exd3 {[%emt 0:00:13]} 16. Qd2 {[%emt 0:07:07]} Qe7 {[%emt 0:02:26]} 17. Nb5 {[%emt 0:01:55]} Bxe5 {[%emt 0:00:31]} 18. Bxe5 {[%emt 0:00:22]} Qxe5 {[%emt 0:00:08]} 19. Nd4 {[%emt 0:00:19]} Bd7 {[%emt 0:01:26]} 20. Rae1 {[%emt 0:07:06]} Rae8 {[%emt 0:01:02]} 21. f4 {[%emt 0:05:22]} Qd6 {[%emt 0:04:39]} 22. Rf3 {[%emt 0:05:00]} a5 {[%emt 0:04:33]} 23. Rb1 {[%emt 0:03:24]} b5 {[%emt 0:02:18]} 24. a3 {[%emt 0:00:57]} b4 {[%emt 0:03:02]} 25. axb4 {[%emt 0:01:52]} axb4 {[%emt 0:00:13]} 26. Ra1 {[%emt 0:01:29]} Ra8 {[%emt 0:01:54]} 27. Rff1 {[%emt 0:00:12]} Rfb8 {[%emt 0:02:12]} 28. Nf3 {[%emt 0:04:39]} Rxa1 {[%emt 0:07:53]} 29. Rxa1 {[%emt 0:00:07]} Qb6 {[%emt 0:00:09]} 30. Ne5 {[%emt 0:01:52]} Be8 {[%emt 0:03:48]} 31. Ra2 {[%emt 0:01:02]} bxc3 {[%emt 0:02:03]} 32. bxc3 {[%emt 0:01:37]} Qb3 {[%emt 0:00:14]} 33. Ng4 {[%emt 0:04:30]} Rb6 {[%emt 0:03:34]} 34. Kh2 {[%emt 0:02:51]} Ba4 {[%emt 0:03:26]} 35. Nf2 {[%emt 0:00:19]} Qb5 {[%emt 0:01:39]} 36. g4 {[%emt 0:01:20]} Ra6 {[%emt 0:02:11]} 37. Qc1 {[%emt 0:05:01]} Bb3 {[%emt 0:01:27]} 38. Ra3 {[%emt 0:00:59]} d2 {[%emt 0:02:27]} 39. Qa1 {[%emt 0:00:39]} Rxa3 {[%emt 0:00:25]} 40. Qxa3 {[%emt 0:00:05]} d1=Q {[%emt 0:00:19]} 41. Nxd1 {[%emt 0:50:45]} Bxd1 {[%emt 0:50:08]} 42. Qe7 {[%emt 0:00:58]} Qc6 {[%emt 0:05:53]} 43. Qd8+ {[%emt 0:00:56]} Kf7 {[%emt 0:00:15]} 44. Qh8 {[%emt 0:00:37]} Qf6 {[%emt 0:00:52]} 45. Qxh7+ {[%emt 0:06:08]} Qg7 {[%emt 0:00:14]} 46. Qxg7+ {[%emt 0:00:00]} Kxg7 {[%emt 0:00:00]} 47. Kg3 {[%emt 0:00:00]} Kf6 {[%emt 0:00:00]} 48. Kh4 {[%emt 0:00:00]} g5+ {[%emt 0:00:00]} 49. Kg3 {[%emt 0:00:00]} gxf4+ {[%emt 0:00:00]} 50. Kxf4 {[%emt 0:00:00]} Bc2 {[%emt 0:00:00]} 51. h4 {[%emt 0:00:00]} Bd3 {[%emt 0:00:00]} 52. h5 {[%emt 0:00:00]} Bc2 {[%emt 0:00:00]} 53. g5+ {[%emt 0:00:00]} Ke6 {[%emt 0:00:00]} 54. g6 {[%emt 0:00:00]} Kf6 {[%emt 0:00:00]} 55. Kg4 {[%emt 0:00:00]} Bd1+ {[%emt 0:00:00]} 56. Kh4 {[%emt 0:00:00]} Bf3 {[%emt 0:00:00]} 57. g7 {[%emt 0:00:00]} Kxg7 {[%emt 0:00:00]} 58. Kg5 {[%emt 0:00:00]} Be4 {[%emt 0:00:00]} 59. h6+ {[%emt 0:00:00]} Kh7 {[%emt 0:00:00]} 60. Kh5 {[%emt 0:00:00]} Bd3 {[%emt 0:00:00]} 0-1

[Event "4NCL 2021-22"]
[Site "England"]
[Date "2022.03.26"]
[Round "5.63"]
[White "Schwartz, Julius"]
[Black "Dunn, Maxim"]
[Result "1-0"]
[ECO "B90"]
[WhiteElo "2088"]
[BlackElo "1742"]
[Annotator "NA"]
[PlyCount "50"]
[EventDate "2021.11.27"]
[EventType "team-tourn"]
[EventCountry "ENG"]
[SourceTitle "playchess.com"]
[Source "ChessBase"]
[SourceQuality "1"]
[TimeControl "40/6000+30:3000+30"]

1. e4 {[%emt 0:03:12]} c5 {[%emt 0:00:10]} 2. Nf3 {[%emt 0:00:07]} d6 {[%emt 0:00:04]} 3. d4 {[%emt 0:00:04]} cxd4 {[%emt 0:00:04]} 4. Nxd4 {[%emt 0:00:10]} Nf6 {[%emt 0:00:06]} 5. Nc3 {[%emt 0:00:07]} a6 {[%emt 0:00:03]} 6. f3 {[%emt 0:00:08]} e5 {[%emt 0:00:19]} 7. Nb3 {[%emt 0:00:09]} Be7 {[%emt 0:00:07]} 8. Be3 {[%emt 0:01:08]} Be6 {[%emt 0:00:07]} 9. Qd2 {[%emt 0:00:24]} h5 {[%emt 0:00:05]} 10. Nd5 {[%emt 0:00:16]} Nxd5 {[%emt 0:03:30]} 11. exd5 {[%emt 0:00:08]} Bf5 {[%emt 0:00:10]} 12. Na5 {[%emt 0:03:08]} Qc7 {[%emt 0:07:28]} 13. Nc4 {[%emt 0:01:51]} Nd7 {[%emt 0:01:06]} 14. a4 {[%emt 0:00:44]} O-O {[%emt 0:06:19]} 15. a5 {[%emt 0:01:56]} Rfe8 {[%emt 0:27:03]} 16. Be2 {[%emt 0:06:59]} h4 {[%emt 0:03:04]} 17. O-O {[%emt 0:03:24]} Rac8 {[%emt 0:09:33]} 18. Ra4 {[%emt 0:07:26]} Nc5 {[%emt 0:09:46]} 19. Ra3 {[%emt 0:01:46]} e4 {[%emt 0:08:12]} 20. Bd4 {[%emt 0:09:03]} Bg6 {[%emt 0:04:54]} 21. f4 {[%emt 0:04:59]} f5 {[%emt 0:09:23]} 22. g4 {[%emt 0:03:23]} hxg3 {[%emt 0:03:02]} 23. Rxg3 {[%emt 0:01:14]} e3 {[%emt 0:00:06]} 24. Qd1 {[%emt 0:01:31]} Kf7 {[%emt 0:01:29]} 25. Bh5 {[%emt 0:00:57]} Rh8 {[%emt 0:04:03]} 1-0

[Event "4NCL 2021-22"]
[Site "England"]
[Date "2022.03.26"]
[Round "5.64"]
[White "Mokhber-Garcia, Sebastian"]
[Black "Roy, Ali"]
[Result "0-1"]
[ECO "C00"]
[WhiteElo "1125"]
[BlackElo "1883"]
[Annotator "NA"]
[PlyCount "120"]
[EventDate "2021.11.27"]
[EventType "team-tourn"]
[EventCountry "ENG"]
[SourceTitle "playchess.com"]
[Source "ChessBase"]
[SourceQuality "1"]
[TimeControl "40/6000+30:3000+30"]

1. e4 {[%emt 0:00:02]} e6 {[%emt 0:00:05]} 2. c4 {[%emt 0:00:11]} d5 {[%emt 0:00:14]} 3. cxd5 {[%emt 0:00:10]} exd5 {[%emt 0:00:13]} 4. Qb3 {[%emt 0:00:10]} dxe4 {[%emt 0:00:51]} 5. Bc4 {[%emt 0:00:11]} Qd7 {[%emt 0:00:33]} 6. Nc3 {[%emt 0:00:35]} Nf6 {[%emt 0:00:33]} 7. d3 {[%emt 0:00:27]} Nc6 {[%emt 0:02:12]} 8. Qa4 {[%emt 0:01:04]} Nb4 {[%emt 0:23:49]} 9. Qb3 {[%emt 0:02:38]} Nxd3+ {[%emt 0:02:43]} 10. Bxd3 {[%emt 0:00:37]} exd3 {[%emt 0:02:00]} 11. Bg5 {[%emt 0:00:34]} Qe6+ {[%emt 0:01:55]} 12. Kd2 {[%emt 0:00:34]} Qxb3 {[%emt 0:01:22]} 13. axb3 {[%emt 0:00:08]} Bb4 {[%emt 0:02:34]} 14. Bxf6 {[%emt 0:00:14]} gxf6 {[%emt 0:00:04]} 15. Kxd3 {[%emt 0:00:31]} Bf5+ {[%emt 0:01:22]} 16. Kc4 {[%emt 0:00:14]} c5 {[%emt 0:01:50]} 17. Re1+ {[%emt 0:03:53]} Be6+ {[%emt 0:01:39]} 18. Kd3 {[%emt 0:00:11]} O-O-O+ {[%emt 0:00:21]} 19. Kc2 {[%emt 0:00:28]} Bf5+ {[%emt 0:01:10]} 20. Kc1 {[%emt 0:00:36]} Rd3 {[%emt 0:03:00]} 21. Re3 {[%emt 0:00:20]} Rxe3 {[%emt 0:01:31]} 22. fxe3 {[%emt 0:00:14]} Re8 {[%emt 0:00:33]} 23. Kd2 {[%emt 0:00:29]} Rg8 {[%emt 0:01:05]} 24. Nge2 {[%emt 0:02:10]} Rxg2 {[%emt 0:00:48]} 25. Rf1 {[%emt 0:00:19]} Bxc3+ {[%emt 0:06:02]} 26. Kxc3 {[%emt 0:01:37]} Be4 {[%emt 0:01:31]} 27. Kd2 {[%emt 0:01:09]} Rxh2 {[%emt 0:00:59]} 28. Rxf6 {[%emt 0:00:23]} Bg6 {[%emt 0:01:36]} 29. Ke1 {[%emt 0:00:28]} Kd7 {[%emt 0:03:46]} 30. Nf4 {[%emt 0:00:26]} Rxb2 {[%emt 0:01:33]} 31. Nxg6 {[%emt 0:00:33]} fxg6 {[%emt 0:00:12]} 32. Rf7+ {[%emt 0:00:18]} Kc6 {[%emt 0:00:12]} 33. Rxh7 {[%emt 0:00:23]} Rxb3 {[%emt 0:00:27]} 34. Kd2 {[%emt 0:00:20]} Rb2+ {[%emt 0:00:47]} 35. Kc3 {[%emt 0:00:19]} Rg2 {[%emt 0:03:18]} 36. Rg7 {[%emt 0:00:48]} a5 {[%emt 0:00:43]} 37. e4 {[%emt 0:00:34]} b5 {[%emt 0:01:58]} 38. Kd3 {[%emt 0:00:52]} Rg3+ {[%emt 0:00:29]} 39. Kc2 {[%emt 0:00:13]} a4 {[%emt 0:02:41]} 40. Ra7 {[%emt 0:01:07]} c4 {[%emt 0:04:50]} 41. Ra6+ {[%emt 0:50:27]} Kc5 {[%emt 0:50:25]} 42. e5 {[%emt 0:00:17]} Re3 {[%emt 0:00:30]} 43. Re6 {[%emt 0:00:54]} Kb4 {[%emt 0:00:21]} 44. Kd2 {[%emt 0:00:18]} Re4 {[%emt 0:00:15]} 45. Re8 {[%emt 0:00:26]} a3 {[%emt 0:00:21]} 46. Ra8 {[%emt 0:00:46]} Rxe5 {[%emt 0:00:19]} 47. Kc2 {[%emt 0:00:10]} Re2+ {[%emt 0:00:14]} 48. Kb1 {[%emt 0:00:40]} Kb3 {[%emt 0:00:43]} 49. Kc1 {[%emt 0:00:22]} a2 {[%emt 0:00:42]} 50. Kd1 {[%emt 0:00:36]} Rh2 {[%emt 0:00:19]} 51. Kc1 {[%emt 0:00:38]} c3 {[%emt 0:00:35]} 52. Kd1 {[%emt 0:00:23]} c2+ {[%emt 0:00:13]} 53. Kc1 {[%emt 0:00:19]} Rh1+ {[%emt 0:00:04]} 54. Kd2 {[%emt 0:00:08]} c1=Q+ {[%emt 0:00:09]} 55. Kd3 {[%emt 0:00:11]} Qc4+ {[%emt 0:00:34]} 56. Ke3 {[%emt 0:00:13]} Rh3+ {[%emt 0:00:04]} 57. Kf2 {[%emt 0:00:13]} Qc2+ {[%emt 0:00:21]} 58. Kg1 {[%emt 0:00:17]} Rh2 {[%emt 0:00:35]} 59. Ra3+ {[%emt 0:00:15]} Kxa3 {[%emt 0:00:03]} 60. Kf1 {[%emt 0:00:12]} Qf2# {[%emt 0:00:04]} 0-1

[Event "4NCL 2021-22"]
[Site "England"]
[Date "2022.03.26"]
[Round "5.65"]
[White "Bisby, Daniel L"]
[Black "Turner, Max N"]
[Result "1-0"]
[ECO "B32"]
[WhiteElo "2296"]
[BlackElo "2223"]
[Annotator "ChessBase"]
[PlyCount "93"]
[EventDate "2021.11.27"]
[EventType "team-tourn"]
[EventCountry "ENG"]
[SourceTitle "playchess.com"]
[Source "ChessBase"]
[SourceQuality "1"]
[TimeControl "40/6000+30:3000+30"]

1. e4 {[%emt 0:04:49]} c5 {[%emt 0:00:14]} 2. Nf3 {[%emt 0:00:52]} Nc6 {[%emt 0:00:25]} 3. d4 {[%emt 0:01:44]} cxd4 {[%emt 0:00:26]} 4. Nxd4 {[%emt 0:00:05]} e5 {[%emt 0:00:58]} 5. Nb5 {[%emt 0:00:54]} d6 {[%emt 0:00:34]} 6. c4 {[%emt 0:01:13]} Be7 {[%emt 0:00:46]} 7. N1c3 {[%emt 0:01:17]} a6 {[%emt 0:00:32]} 8. Na3 {[%emt 0:00:14]} Be6 {[%emt 0:01:47]} 9. Nc2 {[%emt 0:01:46]} h6 {[%emt 0:00:59]} 10. Be2 {[%emt 0:02:32]} Bg5 {[%emt 0:01:19]} 11. O-O {[%emt 0:02:44]} Nge7 {[%emt 0:09:11]} 12. b3 {[%emt 0:03:45]} Be3 {[%emt 0:08:24]} 13. Bd2 Bxd2 {[%emt 0:00:30]} 14. Rc1 {[%emt 0:00:56]} Ng6 15. Qxd2 {[%emt 0:10:49]} Qg5 {[%emt 0:33:19]} 16. Qxg5 {[%emt 0:14:56]} hxg5 {[%emt 0:00:46]} 17. Rfd1 {[%emt 0:00:10]} O-O-O {[%emt 0:06:12]} 18. b4 {[%emt 0:06:33]} Nf4 {[%emt 0:04:55]} 19. b5 {[%emt 0:10:09]} axb5 {[%emt 0:07:00]} 20. cxb5 {[%emt 0:01:12]} Ne7 {[%emt 0:00:54]} 21. Ne3 {[%emt 0:06:11]} Kb8 {[%emt 0:01:46]} 22. Bf1 {[%emt 0:07:21]} Rh6 {[%emt 0:03:40]} 23. g3 {[%emt 0:01:31]} Nfg6 {[%emt 0:01:02]} 24. Bc4 {[%emt 0:04:32]} Nc8 {[%emt 0:07:46]} 25. Bxe6 {[%emt 0:04:52]} fxe6 {[%emt 0:00:05]} 26. Rd2 {[%emt 0:00:20]} Rhh8 {[%emt 0:04:40]} 27. a4 {[%emt 0:01:50]} Rhf8 {[%emt 0:03:55]} 28. Rcd1 {[%emt 0:03:54]} Rf7 {[%emt 0:00:34]} 29. Nb1 {[%emt 0:03:47]} Rfd7 {[%emt 0:05:46]} 30. Nc3 {[%emt 0:03:26]} Nge7 {[%emt 0:01:17]} 31. Rd3 {[%emt 0:00:55]} Rc7 {[%emt 0:00:57]} 32. Kg2 {[%emt 0:03:52]} Rc5 {[%emt 0:00:56]} 33. R1d2 {[%emt 0:00:11]} b6 {[%emt 0:04:12]} 34. Na2 {[%emt 0:01:54]} Kb7 {[%emt 0:00:54]} 35. Nb4 {[%emt 0:00:18]} Rc1 {[%emt 0:00:17]} 36. Rd1 {[%emt 0:03:02]} Rxd1 {[%emt 0:00:13]} 37. Rxd1 {[%emt 0:00:07]} Rf8 {[%emt 0:01:14]} 38. Nc4 {[%emt 0:00:23]} d5 {[%emt 0:00:33]} 39. exd5 {[%emt 0:02:05]} Rd8 {[%emt 0:00:20]} 40. d6 {[%emt 0:01:09]} Nf5 {[%emt 0:00:17]} 41. Nc6 {[%emt 0:50:32]} Rd7 {[%emt 0:50:46]} 42. N6xe5 {[%emt 0:00:28]} Nfxd6 {[%emt 0:00:00]} 43. Nxd7 {[%emt 0:00:00]} Nxc4 {[%emt 0:00:00]} 44. Nf8 {[%emt 0:00:00]} e5 {[%emt 0:00:00]} 45. Rd7+ {[%emt 0:00:00]} Kb8 {[%emt 0:00:00]} 46. Rxg7 {[%emt 0:00:00]} Nb2 {[%emt 0:00:00]} 47. Nd7+ {[%emt 0:00:00]} 1-0

[Event "4NCL 2021-22"]
[Site "England"]
[Date "2022.03.26"]
[Round "5.66"]
[White "Taylor, Adam A"]
[Black "Tanmay Chopra"]
[Result "1/2-1/2"]
[ECO "A07"]
[WhiteElo "2277"]
[BlackElo "2313"]
[Annotator "ChessBase"]
[PlyCount "86"]
[EventDate "2021.11.27"]
[EventType "team-tourn"]
[EventCountry "ENG"]
[SourceTitle "playchess.com"]
[Source "ChessBase"]
[SourceQuality "1"]
[TimeControl "40/6000+30:3000+30"]

1. Nf3 {[%emt 0:00:02]} d5 {[%emt 0:00:06]} 2. g3 {[%emt 0:00:04]} Bg4 {[%emt 0:00:25]} 3. Bg2 {[%emt 0:00:16]} e6 {[%emt 0:00:49]} 4. Ne5 {[%emt 0:04:39]} Bh5 {[%emt 0:07:27]} 5. g4 {[%emt 0:14:41]} Bd6 {[%emt 0:03:16]} 6. gxh5 {[%emt 0:00:03]} Bxe5 {[%emt 0:00:06]} 7. d4 {[%emt 0:00:02]} Bd6 {[%emt 0:00:18]} 8. Nc3 {[%emt 0:00:39]} f5 {[%emt 0:01:28]} 9. Nb5 {[%emt 0:02:11]} c6 {[%emt 0:02:34]} 10. Nxd6+ {[%emt 0:00:12]} Qxd6 {[%emt 0:00:01]} 11. Qd3 {[%emt 0:03:42]} Nd7 {[%emt 0:09:04]} 12. Qg3 {[%emt 0:03:42]} Qe7 {[%emt 0:01:53]} 13. c3 {[%emt 0:40:49]} O-O-O {[%emt 0:09:42]} 14. Bf4 {[%emt 0:00:49]} Ngf6 {[%emt 0:00:28]} 15. Qh4 {[%emt 0:04:58]} Rde8 {[%emt 0:08:46]} 16. O-O-O {[%emt 0:04:49]} Ne4 {[%emt 0:01:05]} 17. Qxe7 {[%emt 0:00:06]} Rxe7 {[%emt 0:00:04]} 18. Rhf1 {[%emt 0:00:12]} Rg8 {[%emt 0:17:54]} 19. h4 {[%emt 0:18:54]} Rf7 {[%emt 0:26:41]} 20. Bh3 {[%emt 0:02:32]} h6 {[%emt 0:00:45]} 21. f3 {[%emt 0:03:50]} Nef6 {[%emt 0:00:04]} 22. Rg1 {[%emt 0:00:01]} Re8 {[%emt 0:06:27]} 23. Bd6 {[%emt 0:00:19]} Nxh5 {[%emt 0:01:10]} 24. Rde1 {[%emt 0:00:06]} Nhf6 {[%emt 0:00:48]} 25. Rg6 {[%emt 0:00:15]} Nf8 {[%emt 0:02:01]} 26. Bxf8 {[%emt 0:03:15]} Rexf8 {[%emt 0:00:04]} 27. e4 {[%emt 0:00:19]} Nh5 {[%emt 0:03:10]} 28. Rxe6 {[%emt 0:01:25]} Nf4 {[%emt 0:00:01]} 29. Bxf5 {[%emt 0:00:07]} Nd3+ {[%emt 0:00:31]} 30. Kd2 {[%emt 0:00:03]} Nxe1 {[%emt 0:00:05]} 31. Kxe1 {[%emt 0:00:07]} Kd8 {[%emt 0:02:46]} 32. Rd6+ {[%emt 0:01:52]} Kc7 {[%emt 0:00:02]} 33. Rg6 {[%emt 0:00:05]} Re7 {[%emt 0:01:32]} 34. Kd2 {[%emt 0:00:09]} Rf6 {[%emt 0:01:19]} 35. Rg2 {[%emt 0:01:24]} h5 {[%emt 0:04:27]} 36. Rg5 {[%emt 0:00:39]} g6 {[%emt 0:00:27]} 37. Rxg6 {[%emt 0:00:31]} Rxg6 {[%emt 0:00:29]} 38. Bxg6 {[%emt 0:00:01]} Rg7 {[%emt 0:00:39]} 39. Bxh5 {[%emt 0:00:02]} Rg2+ {[%emt 0:00:13]} 40. Kc1 {[%emt 0:01:28]} Rh2 {[%emt 0:00:44]} 41. Bf7 {[%emt 0:21:51]} Rxh4 {[%emt 0:00:29]} 42. exd5 {[%emt 0:00:14]} Rf4 {[%emt 0:00:14]} 43. Be6 {[%emt 0:02:09]} Rxf3 {[%emt 0:00:53]} 1/2-1/2